bitfinex-derivatives/quotes_SOLF0:USTF0_20251228
["timestamp","ask_amount","ask_price","bid_price","bid_amount"]
[1766909103609,6.62025397,124.24,124.19,6.64497717]
[1766909103610,0.00025397,124.24,124.22,6.23]
[1766909103814,0.00025397,124.24,124.22,6.28274017]
[1766909104614,0.00025397,124.24,124.22,13.53354017]
[1766909106622,0.00025397,124.24,124.23,6.23]
[1766909108817,0.00025397,124.24,124.23,95.12]
[1766909131636,0.00025397,124.24,124.23,110.17065327]
[1766909131841,6.08,124.33,124.27,6.46]
[1766909132143,6.08,124.33,124.27,101.56]
[1766909132836,0.05700435,124.31,124.29,0.05730952]
[1766909133857,6.08,124.33,124.29,6.51730952]
[1766909134145,6.08,124.35,124.29,6.51730952]
[1766909135148,7.72870107,124.36,124.31,6.46]
[1766909135346,7.72870107,124.36,124.32,0.05231367]
[1766909135549,6.08,124.36,124.32,0.05231367]
[1766909142641,6.08,124.36,124.32,0.00231367]
[1766909143546,13.3229,124.36,124.32,0.00231367]
[1766909143751,6.13,124.35,124.32,0.00231367]
[1766909160567,6.13,124.35,124.29,6.46]
[1766909160873,6.51,124.34,124.27,6.38]
[1766909161572,6.51,124.34,124.29,0.0517285]
[1766909161781,0.05231367,124.32,124.29,0.0517285]
[1766909165481,0.05231367,124.32,124.29,6.4317285]
[1766909165780,6.51,124.34,124.29,6.4317285]
[1766909169483,6.51,124.34,124.3,2.3307969]
[1766909186694,6.51,124.34,124.3,8.4507969]
[1766909187892,6.51,124.34,124.32,1.49153073]
[1766909188094,6.51,124.34,124.32,1.54973989]
[1766909189499,6.12,124.37,124.32,1.54973989]
[1766909194501,6.12,124.37,124.32,0.05820916]
[1766909195503,7.61153073,124.37,124.32,0.05820916]
[1766909196703,6.12,124.37,124.32,0.05820916]
[1766909196999,7.61153073,124.37,124.32,0.05820916]
[1766909199300,13.3623,124.37,124.32,0.05820916]
[1766909199495,14.85383073,124.37,124.32,0.05820916]
[1766909200303,6.12,124.36,124.32,0.05820916]
[1766909228033,7.61153073,124.36,124.32,0.05820916]
[1766909228526,7.82605121,124.35,124.29,7.62153073]
[1766909229430,7.82605121,124.35,124.31,0.06083028]
[1766909233030,6.33452048,124.35,124.31,0.06083028]
[1766909263057,6.33452048,124.35,124.31,0.00083028]
[1766909305176,0.05452048,124.35,124.31,5.49083028]
[1766909306177,0.05452048,124.35,124.31,12.73643028]
[1766909306377,0.05452048,124.35,124.32,5.49]
[1766909307271,0.05452048,124.35,124.33,8.45452992]
[1766909307584,5.86,124.38,124.33,8.45452992]
[1766909307882,5.86,124.38,124.33,5.49]
[1766909308383,0.05925928,124.37,124.34,0.05851147]
[1766909340616,0.05925928,124.37,124.34,7.02958145]
[1766909340920,5.37,124.4,124.35,6.97106998]
[1766909341723,5.37,124.45,124.4,5.48]
[1766909341924,5.37,124.45,124.41,0.05168579]
[1766909342812,5.37,124.45,124.41,1.54275577]
[1766909343308,5.37,124.47,124.42,5.48]
[1766909344223,3.15571242,124.5,124.42,5.48]
[1766909344224,5.37,124.49,124.42,5.48]
[1766909345417,5.43138179,124.47,124.44,0.05340744]
[1766909348932,5.43138179,124.47,124.44,0.00340744]
[1766909358533,5.43138179,124.47,124.4,12.7201]
[1766909359139,5.43138179,124.47,124.41,5.48]
[1766909359534,5.43138179,124.47,124.43,0.05099397]
[1766909361743,5.43138179,124.47,124.43,0.00099397]
[1766909365442,5.31,124.46,124.39,5.48]
[1766909365644,5.31,124.45,124.39,5.48]
[1766909365946,5.31,124.44,124.37,5.48]
[1766909366446,5.36330126,124.42,124.39,0.05403777]
[1766909367346,5.36330126,124.42,124.35,5.48]
[1766909367547,5.31,124.42,124.35,5.48]
[1766909368142,5.31,124.42,124.36,5.48]
[1766909368339,5.31,124.42,124.38,0.05755794]
[1766909368340,0.05455919,124.4,124.38,0.05755794]
[1766909384570,5.31,124.47,124.39,5.48]
[1766909385774,0.05447848,124.44,124.42,0.06130707]
[1766909402003,5.43447848,124.44,124.37,5.29]
[1766909403004,5.43447848,124.44,124.39,0.05705824]
[1766909404205,5.38,124.43,124.35,5.29]
[1766909404408,5.38,124.42,124.33,15.31591704]
[1766909404706,5.38,124.42,124.33,5.29]
[1766909405301,5.4406983,124.39,124.36,0.05645052]
[1766909408311,0.0606983,124.39,124.36,5.34645052]
[1766909453473,0.0006983,124.39,124.36,5.34645052]
[1766909457469,0.0006983,124.39,124.36,12.58885052]
[1766909457773,0.0006983,124.39,124.37,4.89]
[1766909458770,5.91411315,124.44,124.38,4.89]
[1766909458967,4.96,124.45,124.38,4.89]
[1766909459276,10.87308658,124.45,124.38,4.89]
[1766909459772,0.06094722,124.43,124.4,0.05152278]
[1766909495999,5.19094722,124.43,124.4,0.05152278]
[1766909514120,5.19094722,124.43,124.37,4.74]
[1766909515126,5.19094722,124.43,124.39,0.05457163]
[1766909515726,12.42974722,124.43,124.39,0.05457163]
[1766909522427,5.19094722,124.43,124.39,0.05457163]
[1766909523929,5.19094722,124.43,124.39,4.79457163]
[1766909524226,4.94,124.47,124.39,4.79457163]
[1766909524419,17.07139219,124.47,124.39,4.74]
[1766909524625,4.94,124.47,124.39,4.74]
[1766909524933,4.94,124.47,124.4,11.9803]
[1766909525132,0.05654159,124.45,124.42,0.05381395]
[1766909527537,4.94,124.48,124.42,4.79381395]
[1766909528231,94.98,124.49,124.42,12.03301395]
[1766909528437,94.98,124.49,124.43,4.74]
[1766909528636,0.05090828,124.47,124.45,0.0596179]
[1766909534041,0.05090828,124.47,124.42,11.9792]
[1766909534042,4.99090828,124.47,124.42,11.9792]
[1766909534936,4.99090828,124.47,124.43,0.06048295]
[1766909548046,4.99090828,124.47,124.39,11.6807]
[1766909548251,4.94,124.47,124.39,11.6807]
[1766909549053,4.72484566,124.44,124.42,0.0003135]
[1766909564162,0.05484566,124.44,124.42,0.0003135]
[1766909567066,4.41484566,124.44,124.42,0.0003135]
[1766909570367,0.05484566,124.44,124.42,0.0003135]
[1766909575069,0.00484566,124.44,124.42,4.4203135]
[1766909575668,0.00484566,124.44,124.42,0.0003135]
[1766909604296,4.36484566,124.44,124.42,0.0003135]
[1766909605192,4.36484566,124.44,124.39,4.48]
[1766909606297,4.36484566,124.44,124.4,0.05998318]
[1766909607807,0.00484566,124.44,124.4,4.53998318]
[1766909662050,0.00484566,124.44,124.4,14.52549966]
[1766909662444,0.00484566,124.44,124.4,4.53998318]
[1766909664062,0.00484566,124.44,124.4,14.52549966]
[1766909664258,0.00484566,124.44,124.4,4.53998318]
[1766909664856,0.00484566,124.44,124.4,14.52549966]
[1766909665052,0.00484566,124.44,124.41,4.07]
[1766909673867,0.00484566,124.44,124.41,11.3098]
[1766909674073,0.00484566,124.44,124.42,4.07]
[1766909679165,4.3,124.48,124.43,4.07]
[1766909680273,0.05606398,124.47,124.44,0.06026125]
[1766909686973,4.19606398,124.47,124.44,0.06026125]
[1766909687670,4.19606398,124.47,124.41,4.35]
[1766909687864,4.19606398,124.47,124.4,4.35]
[1766909688570,4.14,124.46,124.42,0.05755145]
[1766909690578,11.3771,124.46,124.42,0.05755145]
[1766909690877,4.23,124.45,124.42,0.05755145]
[1766909701390,0.05606398,124.47,124.42,4.49755145]
[1766909701795,0.05606398,124.47,124.42,11.73665145]
[1766909701990,0.05606398,124.47,124.43,4.44]
[1766909702386,4.28606398,124.47,124.42,0.05755145]
[1766909705000,4.28606398,124.47,124.42,4.49755145]
[1766909713510,4.28606398,124.47,124.42,0.05755145]
[1766909760028,4.14,124.46,124.42,0.05755145]
[1766909804375,4.14,124.46,124.39,21.11641648]
[1766909805471,0.05663434,124.44,124.41,0.05616827]
[1766909831811,3.77663434,124.44,124.41,0.05616827]
[1766909832016,3.77663434,124.44,124.37,9.98551648]
[1766909832514,3.77663434,124.44,124.36,13.94551648]
[1766909832515,3.72,124.42,124.36,13.94551648]
[1766909833016,0.06067543,124.4,124.38,0.05420554]
[1766909833215,3.78067543,124.4,124.34,13.94551648]
[1766909833515,3.78067543,124.4,124.33,9.98551648]
[1766909833813,3.72,124.4,124.33,3.96]
[1766909834312,0.05560475,124.38,124.35,0.06107899]
[1766909834510,0.05560475,124.38,124.35,0.05107135]
[1766909836217,3.62560475,124.38,124.35,0.05107135]
[1766909843625,3.62560475,124.38,124.33,3.96]
[1766909844628,3.62560475,124.38,124.34,0.05487179]
[1766909845423,3.57,124.37,124.34,0.05487179]
[1766909847227,3.57,124.37,124.31,3.58]
[1766909848131,0.05954089,124.35,124.33,0.05913163]
[1766909849231,3.57,124.37,124.33,0.05913163]
[1766909849420,3.57,124.37,124.33,3.63913163]
[1766909850338,0.05544751,124.36,124.33,3.63913163]
[1766909881030,3.5,124.38,124.33,3.63913163]
[1766909882034,0.06150288,124.37,124.33,3.63913163]
[1766909896850,0.00150288,124.37,124.33,3.63913163]
[1766909982725,6.11713334,124.4,124.34,3.35]
[1766909982931,12.39607671,124.43,124.34,3.35]
[1766909983837,0.05907358,124.4,124.37,0.0581201]
[1766909986436,3.49,124.43,124.37,0.0581201]
[1766909987441,0.05498038,124.41,124.37,0.0581201]
[1766910000663,0.00498038,124.41,124.37,0.0581201]
[1766910002852,0.00498038,124.41,124.37,7.3002201]
[1766910008263,0.00498038,124.41,124.37,0.0581201]
[1766910034273,0.00498038,124.41,124.37,7.3001201]
[1766910045885,0.00498038,124.41,124.38,7.2415]
[1766910049185,3.53498038,124.41,124.33,94.98]
[1766910049385,3.53,124.41,124.33,94.98]
[1766910050090,3.53,124.41,124.34,7.2438]
[1766910050278,0.05926462,124.39,124.36,0.05698951]
[1766910055882,3.53,124.41,124.36,0.05698951]
[1766910057093,0.05215745,124.4,124.36,0.05698951]
[1766910064792,3.59215745,124.4,124.36,0.05698951]
[1766910077806,3.59215745,124.4,124.34,7.2438]
[1766910078802,3.59215745,124.4,124.36,0.06190306]
[1766910082006,3.59215745,124.4,124.36,0.00190306]
[1766910093522,3.59215745,124.4,124.33,7.2445]
[1766910093723,3.54,124.4,124.33,7.2445]
[1766910094422,0.05344884,124.38,124.35,0.05617613]
[1766910094621,3.44344884,124.38,124.35,0.05617613]
[1766910095922,3.44344884,124.38,124.31,7.2452]
[1766910096925,3.44344884,124.38,124.33,0.05525299]
[1766910101220,3.44344884,124.38,124.33,7.29955299]
[1766910102312,0.05344884,124.38,124.33,7.29955299]
[1766910102515,0.05344884,124.38,124.33,112.74605299]
[1766910103721,0.05344884,124.38,124.35,7.2429]
[1766910109231,0.05344884,124.38,124.33,7.29935299]
[1766910110329,0.05344884,124.38,124.34,7.2438]
[1766910113135,3.72344884,124.38,124.34,7.2438]
[1766910122643,0.05344884,124.38,124.34,7.2438]
[1766910127445,0.05344884,124.38,124.35,7.2433]
[1766910133253,0.05344884,124.38,124.33,7.29935299]
[1766910138160,0.05344884,124.38,124.33,0.05525299]
[1766910139964,3.65344884,124.38,124.33,0.05525299]
[1766910148267,0.05344884,124.38,124.33,0.05525299]
[1766910149568,0.05344884,124.38,124.33,7.29945299]
[1766910168286,3.6,124.4,124.34,102.2636]
[1766910168476,3.37,124.42,124.34,95.02]
[1766910169283,0.05765605,124.39,124.34,95.02]
[1766910169489,0.05765605,124.39,124.37,0.05115011]
[1766910173695,3.33,124.41,124.37,0.05115011]
[1766910174794,0.06044506,124.4,124.37,0.05115011]
[1766910182394,0.00044506,124.4,124.37,0.05115011]
[1766910195326,3.61044506,124.4,124.37,0.05115011]
[1766910222845,3.61044506,124.4,124.37,0.00115011]
[1766910224745,3.61044506,124.4,124.34,95.02]
[1766910227152,3.61044506,124.4,124.3,15.03176581]
[1766910227153,3.44,124.39,124.3,15.03176581]
[1766910227347,9.35408948,124.39,124.29,15.03176581]
[1766910227543,3.44,124.38,124.29,15.03176581]
[1766910227947,3.49314949,124.35,124.32,0.06153316]
[1766910247883,112.5904,124.45,124.32,0.06153316]
[1766910248089,3.61,124.43,124.3,112.7156]
[1766910248387,3.61,124.42,124.3,112.7156]
[1766910248983,0.05544472,124.37,124.35,0.05096617]
[1766910249183,0.05228973,124.37,124.35,0.05800341]
[1766910249888,3.61,124.38,124.35,0.05800341]
[1766910250893,3.66668459,124.38,124.35,0.05800341]
[1766910273401,3.66668459,124.38,124.34,7.2438]
[1766910274506,3.66668459,124.38,124.35,0.05803826]
[1766910275302,3.66668459,124.38,124.32,7.2449]
[1766910276106,3.66668459,124.38,124.34,0.05802589]
[1766910277208,3.66668459,124.38,124.32,7.2449]
[1766910278208,3.66668459,124.38,124.34,0.05965231]
[1766910278506,3.66668459,124.38,124.32,7.2449]
[1766910279008,3.66668459,124.38,124.3,102.2658]
[1766910279310,0.052994,124.35,124.33,0.05996413]
[1766910280006,3.602994,124.35,124.3,102.2658]
[1766910281011,3.602994,124.35,124.31,0.05832977]
[1766910305334,3.602994,124.35,124.31,7.30392977]
[1766910308037,3.602994,124.35,124.3,95.02]
[1766910309032,3.602994,124.35,124.31,0.05135977]
[1766910324746,3.602994,124.35,124.3,95.19745977]
[1766910325250,3.602994,124.35,124.3,98.52745977]
[1766910328954,3.602994,124.35,124.3,3.6861]
[1766910338452,3.602994,124.35,124.29,95.02]
[1766910338957,3.602994,124.35,124.29,102.2667]
[1766910339453,3.602994,124.35,124.29,98.35]
[1766910339758,3.602994,124.35,124.3,3.33]
[1766910340545,3.602994,124.35,124.3,10.5761]
[1766910345063,1.0,124.37,124.31,10.7756]
[1766910345958,0.05409219,124.35,124.33,0.052994]
[1766910350259,1.02,124.38,124.33,3.582994]
[1766910350468,1.02,124.38,124.33,3.53]
[1766910351164,1.02,124.38,124.34,0.05982246]
[1766910351367,0.06164094,124.37,124.34,0.05982246]
[1766910377194,1.20164094,124.37,124.31,10.8256]
[1766910377694,1.20164094,124.37,124.31,3.58]
[1766910378289,1.20164094,124.37,124.33,0.04726373]
[1766910428435,1.20164094,124.37,124.31,7.2454]
[1766910433450,1.20164094,124.37,124.31,10.8254]
[1766910459673,1.20164094,124.37,124.32,3.63]
[1766910477167,0.06164094,124.37,124.32,3.63]
[1766910485094,7.30394094,124.37,124.32,3.63]
[1766910499621,8.57394094,124.37,124.32,3.63]
[1766910512432,7.30394094,124.37,124.29,22.27816581]
[1766910512618,0.00061929,124.34,124.29,22.27816581]
[1766910513532,0.00061929,124.34,124.3,0.05700938]
[1766910514427,0.00061929,124.34,124.31,3.81]
[1766910540453,0.00061929,124.34,124.3,0.05700938]
[1766910542454,0.00061929,124.34,124.31,3.74]
[1766910566385,0.00061929,124.34,124.3,0.05700938]
[1766910568492,0.00061929,124.34,124.31,3.47]
[1766910580499,0.00061929,124.34,124.31,13.47986798]
[1766910585204,0.00061929,124.34,124.32,3.49]
[1766910604330,0.00061929,124.34,124.33,3.32]
[1766910605323,0.00061929,124.34,124.33,13.32986798]
[1766910605927,0.00061929,124.34,124.33,3.32]
[1766910606230,0.00061929,124.34,124.33,13.31021822]
[1766910612935,207.6365,124.44,124.33,13.31021822]
[1766910612936,0.91,124.43,124.33,9.99021822]
[1766910613142,0.91,124.43,124.37,3.32]
[1766910614040,0.05111703,124.41,124.39,0.05901251]
[1766910621044,0.05111703,124.41,124.37,3.32]
[1766910621246,0.93111703,124.41,124.37,3.32]
[1766910621553,0.93111703,124.41,124.36,95.02]
[1766910624544,0.93111703,124.41,124.36,98.46]
[1766910625542,0.93111703,124.41,124.36,3.44]
[1766910627747,0.05111703,124.41,124.36,3.44]
[1766910630448,0.00111703,124.41,124.37,3.44]
[1766910631447,0.00111703,124.41,124.36,112.6638]
[1766910631448,0.00111703,124.41,124.39,3.44]
[1766910675298,0.00111703,124.41,124.39,13.43021822]
[1766910712129,0.00111703,124.41,124.39,3.44]
[1766910718442,0.00111703,124.41,124.39,13.44075315]
[1766910718932,0.00111703,124.41,124.39,3.44]
[1766910720432,0.00111703,124.41,124.4,3.29]
[1766910720630,0.00111703,124.41,124.4,13.29075315]
[1766910758575,0.00111703,124.41,124.4,8.62840125]
[1766910758872,0.80111703,124.41,124.36,98.33]
[1766910759572,0.00111703,124.41,124.36,98.33]
[1766910760074,0.00111703,124.41,124.37,3.37]
[1766910762974,0.00111703,124.41,124.35,3.37]
[1766910763972,0.00111703,124.41,124.34,1.84604557]
[1766910764784,0.00111703,124.41,124.33,98.35]
[1766910765085,0.06054071,124.38,124.33,98.35]
[1766910765884,0.06054071,124.38,124.34,3.39]
[1766910781697,7.24,124.41,124.34,3.39]
[1766910782693,0.05861391,124.39,124.36,0.05195199]
[1766910794709,7.30011391,124.39,124.33,3.57]
[1766910812523,0.05861391,124.39,124.33,3.57]
[1766910839846,0.05861391,124.39,124.33,10.8144]
[1766910840850,0.05861391,124.39,124.34,3.47]
[1766910905710,6.08862433,124.42,124.35,3.64]
[1766910905911,7.2392,124.43,124.35,3.64]
[1766910906210,6.08874318,124.45,124.35,3.64]
[1766910906408,5.90635878,124.44,124.35,3.64]
[1766910906611,5.90635878,124.44,124.37,3.64]
[1766910906809,0.00133714,124.42,124.4,3.64]
[1766910911319,1.34234417,124.46,124.4,3.64]
[1766910912420,0.05175144,124.44,124.42,0.05109119]
[1766910914621,0.00175144,124.44,124.42,3.69109119]
[1766910916425,0.00175144,124.44,124.36,9.99150769]
[1766910916615,112.5873,124.45,124.36,9.99150769]
[1766910917211,112.5873,124.45,124.35,9.99150769]
[1766910917424,112.5873,124.45,124.39,0.05466]
[1766910917627,7.2389,124.43,124.39,0.05466]
[1766910918423,7.2389,124.43,124.39,3.85466]
[1766910918424,0.05685036,124.42,124.39,3.85466]
[1766910933030,7.29635036,124.42,124.39,3.85466]
[1766910939342,0.05685036,124.42,124.39,3.85466]
[1766910969875,95.0,124.44,124.39,3.85466]
[1766910970775,0.05187556,124.43,124.39,3.85466]
[1766910979380,7.2367,124.47,124.39,3.85466]
[1766910979571,13.35576485,124.47,124.4,3.76]
[1766910979876,6.11906485,124.47,124.41,3.76]
[1766910980471,0.06188319,124.45,124.43,0.05164942]
[1766910995494,0.00188319,124.45,124.43,3.81164942]
[1766910997298,102.236,124.48,124.43,3.81164942]
[1766910997591,7.236,124.48,124.43,3.81164942]
[1766910998293,0.05713784,124.47,124.43,3.81164942]
[1766911047943,98.13571242,124.5,124.44,4.04]
[1766911048842,0.05210326,124.48,124.46,0.05858471]
[1766911049043,98.13571242,124.5,124.46,4.09858471]
[1766911050048,0.05348746,124.49,124.46,4.09858471]
[1766911051252,2.00228991,124.5,124.46,4.09858471]
[1766911051445,6.01808591,124.54,124.46,4.09858471]
[1766911051645,6.01808591,124.54,124.46,4.04]
[1766911052250,0.0606454,124.51,124.49,0.05448913]
[1766911053248,6.01808591,124.54,124.49,0.05448913]
[1766911053249,102.1719,124.55,124.49,0.05448913]
[1766911053448,102.1719,124.55,124.49,4.09448913]
[1766911054344,0.06088829,124.53,124.49,4.09448913]
[1766911056057,0.06088829,124.53,124.49,0.00448913]
[1766911056956,7.2343,124.51,124.45,4.04]
[1766911057958,0.06081324,124.49,124.47,0.06003906]
[1766911116100,0.06081324,124.49,124.45,4.04]
[1766911116307,94.94,124.48,124.43,14.15150769]
[1766911116507,0.06081324,124.49,124.44,4.16]
[1766911117110,0.06081324,124.49,124.45,4.16071758]
[1766911165566,0.00081324,124.49,124.45,4.16071758]
[1766911173974,6.09695729,124.51,124.45,4.16071758]
[1766911174171,1.30831489,124.53,124.45,4.16071758]
[1766911174377,1.30831489,124.53,124.46,4.03]
[1766911174566,7.40446463,124.53,124.46,4.03]
[1766911175059,7.40446463,124.53,124.49,4.03]
[1766911176172,0.05955433,124.52,124.49,4.03]
[1766911176865,1.30831489,124.53,124.49,4.03]
[1766911177267,6.09614974,124.54,124.49,4.03]
[1766911177576,94.94,124.56,124.49,4.03]
[1766911177762,6.09096982,124.55,124.49,4.03]
[1766911177961,102.1709,124.57,124.52,4.07]
[1766911178977,0.05389267,124.56,124.52,4.07]
[1766911180675,0.00389267,124.56,124.52,4.07]
[1766911190888,7.23519267,124.56,124.52,4.07]
[1766911195284,102.1301,124.58,124.52,4.07]
[1766911196291,7.2291,124.6,124.55,4.15]
[1766911196491,94.9,124.59,124.55,4.15]
[1766911196996,112.472,124.58,124.47,94.9]
[1766911197799,0.05996637,124.54,124.51,0.05887561]
[1766911198100,112.472,124.58,124.51,0.05887561]
[1766911198598,7.2309,124.57,124.51,0.05887561]
[1766911198790,7.2309,124.57,124.52,4.2]
[1766911199399,218.1992,124.59,124.52,4.2]
[1766911199585,218.1992,124.59,124.54,0.06118995]
[1766911201296,102.1298,124.59,124.54,4.26118995]
[1766911201597,94.9,124.59,124.54,4.26118995]
[1766911203897,11.028,124.62,124.54,4.26118995]
[1766911204202,94.9,124.61,124.57,0.06006049]
[1766911204594,3.8,124.62,124.57,0.06006049]
[1766911204894,3.95,124.64,124.57,0.06006049]
[1766911205101,94.88,124.64,124.57,0.06006049]
[1766911205597,11.1756,124.66,124.57,0.06006049]
[1766911205793,98.83,124.66,124.55,7.2314]
[1766911205997,98.83,124.66,124.6,0.06010158]
[1766911206197,3.95,124.65,124.6,0.06010158]
[1766911208188,3.95,124.65,124.54,7.2323]
[1766911209300,0.00010158,124.61,124.58,0.05305306]
[1766911213292,0.00010158,124.61,124.58,7.28255306]
[1766911213593,0.00010158,124.61,124.58,114.11675306]
[1766911214196,0.00010158,124.61,124.59,119.6853]
[1766911214996,0.00010158,124.61,124.6,1.6]
[1766911215596,0.00010158,124.61,124.59,119.6853]
[1766911215798,0.00010158,124.61,124.6,94.84]
[1766911216506,4.4,124.72,124.62,112.424]
[1766911216904,4.4,124.69,124.59,112.4563]
[1766911217205,4.4,124.69,124.6,94.84]
[1766911218400,4.4,124.69,124.6,207.2873]
[1766911218609,0.05538954,124.66,124.6,207.2873]
[1766911218811,0.05538954,124.66,124.61,119.6675]
[1766911219312,0.05538954,124.66,124.6,94.84]
[1766911219610,0.05538954,124.66,124.62,0.05541647]
[1766911219811,4.45538954,124.66,124.56,1.82326363]
[1766911220104,4.4,124.66,124.56,96.66326363]
[1766911220300,4.4,124.66,124.56,216.37956363]
[1766911220502,4.4,124.66,124.56,209.14866363]
[1766911220698,4.4,124.68,124.59,112.4569]
[1766911221002,0.05884408,124.65,124.62,0.05317636]
[1766911222402,4.45884408,124.65,124.58,94.82]
[1766911222703,4.4,124.65,124.57,94.82]
[1766911222904,4.4,124.65,124.55,112.4887]
[1766911223107,4.4,124.65,124.56,96.64326363]
[1766911223407,0.06164079,124.62,124.59,0.05311042]
[1766911223705,4.46164079,124.62,124.59,0.05311042]
[1766911223910,4.46164079,124.62,124.56,1.82326363]
[1766911224213,4.46164079,124.62,124.54,94.82]
[1766911224505,4.4,124.62,124.54,94.82]
[1766911225007,0.05693133,124.59,124.54,94.82]
[1766911225907,0.05693133,124.59,124.55,0.05773651]
[1766911228209,0.05693133,124.59,124.55,7.28923651]
[1766911230610,4.4,124.63,124.55,7.28923651]
[1766911230814,4.4,124.63,124.55,7.2315]
[1766911231704,0.05766391,124.6,124.58,0.05554165]
[1766911231904,4.4,124.63,124.58,0.05554165]
[1766911232812,0.05711011,124.62,124.58,0.05554165]
[1766911243821,4.45711011,124.62,124.58,0.05554165]
[1766911245223,12.1452,124.67,124.58,0.05554165]
[1766911245526,4.92,124.66,124.57,7.2304]
[1766911245828,4.92,124.65,124.57,7.2304]
[1766911246214,0.05211234,124.62,124.6,0.06020443]
[1766911246419,0.05428946,124.62,124.6,0.06119751]
[1766911246615,4.97428946,124.62,124.6,0.00119751]
[1766911247028,4.97428946,124.62,124.55,102.0713]
[1766911247329,4.97428946,124.62,124.55,7.2313]
[1766911247716,4.97428946,124.62,124.54,94.84]
[1766911247928,4.92,124.62,124.54,94.84]
[1766911248138,0.05597357,124.59,124.57,0.0539945]
[1766911248830,4.92,124.64,124.57,0.0539945]
[1766911249828,0.0580715,124.62,124.57,0.0539945]
[1766911250026,5.3380715,124.62,124.57,0.0539945]
[1766911252531,0.0580715,124.62,124.57,0.0539945]
[1766911256837,5.3380715,124.62,124.57,0.0539945]
[1766911263948,5.3380715,124.62,124.57,0.0039945]
[1766911264444,5.28,124.61,124.53,9.99150769]
[1766911264938,5.28,124.61,124.53,122.50160769]
[1766911265147,5.28,124.61,124.55,7.2315]
[1766911265344,0.06075501,124.59,124.57,0.06085391]
[1766911270054,0.00075501,124.59,124.57,0.06085391]
[1766911272358,0.00075501,124.59,124.57,10.0523616]
[1766911272563,0.00075501,124.59,124.57,17.2826616]
[1766911273848,0.00075501,124.59,124.58,94.84]
[1766911276761,0.00075501,124.59,124.57,17.2826616]
[1766911276952,0.00075501,124.59,124.57,112.1226616]
[1766911277354,0.00075501,124.59,124.57,0.06085391]
[1766911282160,5.33075501,124.59,124.57,0.00085391]
[1766911290464,0.00075501,124.59,124.57,0.00085391]
[1766911314885,0.00075501,124.59,124.57,7.23125391]
[1766911315589,0.00075501,124.59,124.57,0.00085391]
[1766911321691,5.67075501,124.59,124.57,0.00085391]
[1766911327694,5.67,124.58,124.57,0.00085391]
[1766911341003,94.88,124.58,124.57,0.00085391]
[1766911351824,7.2313,124.56,124.45,112.5799]
[1766911352023,5.66,124.54,124.45,112.5829]
[1766911352225,100.54,124.53,124.45,112.5829]
[1766911352921,0.05914689,124.5,124.48,0.05792721]
[1766911353222,100.54,124.55,124.48,7.29322721]
[1766911353424,5.66,124.54,124.48,7.2353]
[1766911353922,5.66,124.54,124.46,7.2366]
[1766911354119,0.05702103,124.51,124.49,0.05128713]
[1766911356524,5.66,124.54,124.49,0.05128713]
[1766911357725,5.71592336,124.53,124.49,0.05128713]
[1766911359130,5.71592336,124.53,124.49,0.00128713]
[1766911359339,5.71592336,124.53,124.44,17.22930769]
[1766911359630,5.71592336,124.53,124.41,112.616]
[1766911359631,5.66,124.53,124.43,9.99150769]
[1766911359818,5.66,124.53,124.42,9.99150769]
[1766911360324,112.507,124.54,124.46,0.06168105]
[1766911360325,5.71668991,124.49,124.46,0.06168105]
[1766911360627,5.71668991,124.49,124.46,0.0046479]
[1766911370831,5.71668991,124.49,124.4,112.6221]
[1766911370832,5.71,124.48,124.4,9.99150769]
[1766911371134,5.71,124.48,124.39,9.99150769]
[1766911371336,5.71,124.48,124.4,112.6284]
[1766911371929,0.05904331,124.45,124.43,0.05114504]
[1766911372740,5.71,124.48,124.43,0.05114504]
[1766911373838,0.0596071,124.47,124.43,0.05114504]
[1766911377242,5.7396071,124.47,124.43,0.05114504]
[1766911384643,5.7396071,124.47,124.43,0.00114504]
[1766911384947,5.7396071,124.47,124.42,7.2391]
[1766911384948,5.7396071,124.47,124.4,7.24]
[1766911385344,5.7396071,124.47,124.38,7.2415]
[1766911385544,5.68,124.47,124.37,104.91150769]